bitfinex/quotes_SOLUSD_20230101
["timestamp","ask_amount","ask_price","bid_price","bid_amount"]
[1672538621037,114.63479829,10.032,10.02,35.80730786]
[1672538621237,114.63479829,10.032,10.021,15.80730786]
[1672538621447,114.63479829,10.032,10.02,20.0]
[1672538621662,12.13831648,10.031,10.02,15.0]
[1672538623253,40.0,10.03,10.02,15.0]
[1672538623446,114.88,10.03,10.017,20.0]
[1672538623651,127.00597258,10.03,10.017,20.0]
[1672538623875,205.4368205,10.03,10.017,20.0]
[1672538624073,205.4368205,10.03,10.017,15.80730786]
[1672538624412,205.4368205,10.03,10.018,20.0]
[1672538625974,205.4368205,10.03,10.018,67.8752]
[1672538626928,205.4368205,10.03,10.018,366.5752]
[1672538627122,205.4368205,10.03,10.019,40.0]
[1672538627123,127.00597258,10.03,10.019,40.0]
[1672538627336,127.00597258,10.03,10.02,20.0]
[1672538628189,52.12597258,10.03,10.02,20.0]
[1672538630092,114.15133486,10.03,10.02,20.0]
[1672538630419,40.0,10.028,10.02,20.0]
[1672538631675,12.08892609,10.027,10.02,20.0]
[1672538635971,12.08892609,10.027,10.021,40.0]
[1672538636598,180.9478,10.032,10.021,40.0]
[1672538636803,180.9478,10.032,10.021,64.4641]
[1672538637458,180.9478,10.032,10.021,363.1641]
[1672538637669,12.13831648,10.031,10.021,363.1641]
[1672538638709,12.13831648,10.031,10.021,64.4641]
[1672538638923,12.13831648,10.031,10.021,24.4641]
[1672538643230,74.88,10.03,10.021,24.4641]
[1672538643442,40.0,10.029,10.021,24.4641]
[1672538644496,40.0,10.027,10.021,24.4641]
[1672538645553,114.89,10.029,10.021,24.4641]
[1672538647533,12.10127738,10.028,10.021,24.4641]
[1672538663107,40.0,10.027,10.021,24.4641]
[1672538663730,52.08892609,10.027,10.021,24.4641]
[1672538668567,74.63479829,10.025,10.011,1057.18674601]
[1672538668782,149.56479829,10.024,10.013,24.8289]
[1672538668978,40.0,10.022,10.013,24.8289]
[1672538669817,175.2857,10.022,10.013,24.8289]
[1672538672766,12.01476656,10.021,10.013,24.8289]
[1672538673598,40.0,10.02,10.013,24.8289]
[1672538674244,155.42236656,10.021,10.013,24.8289]
[1672538674772,11.98466525,10.019,10.013,24.8289]
[1672538674963,11.98466525,10.019,10.012,23.5112]
[1672538675716,40.0,10.02,10.012,23.5112]
[1672538675930,143.4076,10.021,10.012,23.5112]
[1672538676556,11.99703627,10.02,10.012,23.5112]
[1672538678649,51.99703627,10.02,10.012,23.5112]
[1672538679273,74.96,10.019,10.012,23.5112]
[1672538679607,126.95703627,10.02,10.012,23.5112]
[1672538680848,40.0,10.018,10.012,23.5112]
[1672538681055,74.98,10.017,10.011,24.2635]
[1672538681279,40.0,10.016,10.009,22.8076]
[1672538681474,40.0,10.014,10.01,20.0]
[1672538681689,74.99,10.015,10.01,20.0]
[1672538681902,74.99,10.015,10.008,23.6279]
[1672538681903,74.99,10.016,10.009,20.0]
[1672538682129,86.93991579,10.017,10.009,20.0]
[1672538682536,51.95991579,10.017,10.009,20.0]
[1672538684645,11.95991579,10.017,10.009,20.0]
[1672538684875,11.95991579,10.017,10.01,40.0]
[1672538685072,11.95991579,10.017,10.011,20.0]
[1672538685579,24.1938,10.022,10.011,20.0]
[1672538685790,24.1938,10.022,10.012,40.0]
[1672538686629,11.99703627,10.02,10.012,40.0]
[1672538692207,36.90953627,10.02,10.012,40.0]
[1672538697570,146.59243627,10.02,10.012,40.0]
[1672538704841,146.59243627,10.02,10.011,382.3292]
[1672538704842,40.0,10.019,10.011,43.6292]
[1672538705037,114.96,10.019,10.011,43.6292]
[1672538705664,11.97229175,10.018,10.011,43.6292]
[1672538706513,11.97229175,10.018,10.011,382.3292]
[1672538706731,11.97229175,10.018,10.011,83.6292]
[1672538708001,209.5554,10.02,10.011,83.6292]
[1672538709032,11.95991579,10.017,10.011,43.6292]
[1672538710716,209.5554,10.02,10.011,43.6292]
[1672538712938,11.98466525,10.019,10.011,43.6292]
[1672538713554,128.28066525,10.019,10.011,43.6292]
[1672538716815,128.28066525,10.019,10.012,40.0]
[1672538723450,128.28066525,10.019,10.011,43.6292]
[1672538723657,152.87196525,10.019,10.011,43.6292]
[1672538725030,114.97,10.018,10.011,43.6292]
[1672538725638,126.94229175,10.018,10.011,43.6292]
[1672538725872,86.94229175,10.018,10.011,43.6292]
[1672538731647,40.0,10.017,10.011,43.6292]
[1672538731836,74.99,10.016,10.011,43.6292]
[1672538732166,74.98,10.017,10.011,20.0]
[1672538732381,74.98,10.017,10.01,20.0]
[1672538732903,12.52798772,10.015,10.01,20.0]
[1672538733756,189.9082,10.018,10.01,20.0]
[1672538735208,40.0,10.017,10.01,20.0]
[1672538735421,74.99,10.016,10.01,20.0]
[1672538736674,12.52798772,10.015,10.01,20.0]
[1672538739532,74.98,10.017,10.01,20.0]
[1672538740567,12.54030944,10.016,10.01,20.0]
[1672538740901,12.54030944,10.016,10.01,60.0]
[1672538742568,189.9082,10.018,10.01,60.0]
[1672538742780,189.9082,10.018,10.01,20.0]
[1672538745721,189.9082,10.018,10.01,60.0]
[1672538756996,189.9082,10.018,10.011,40.0]
[1672538758269,114.9382,10.018,10.011,40.0]
[1672538763414,114.9382,10.018,10.011,35.0]
[1672538765836,12.5526287,10.017,10.011,35.0]
[1672538769194,12.5526287,10.017,10.012,298.7]
[1672538769523,12.5526287,10.017,10.013,40.0]
[1672538770771,114.9382,10.018,10.013,40.0]
[1672538771854,12.5526287,10.017,10.013,40.0]
[1672538772774,114.9382,10.018,10.013,40.0]
[1672538773715,12.5526287,10.017,10.013,40.0]
[1672538774645,114.9382,10.018,10.013,40.0]
[1672538782660,114.9382,10.018,10.014,298.7]
[1672538782866,114.9382,10.018,10.015,40.0]
[1672538788751,12.5526287,10.017,10.015,40.0]
[1672538789599,114.9382,10.018,10.015,40.0]
[1672538791598,114.9382,10.018,10.014,338.7]
[1672538792649,12.5526287,10.017,10.014,338.7]
[1672538793178,12.5526287,10.017,10.013,64.38756324]
[1672538793484,12.5526287,10.017,10.011,35.0]
[1672538793699,137.8455,10.018,10.011,35.0]
[1672538794221,137.8455,10.018,10.011,333.7]
[1672538796624,12.5526287,10.017,10.011,333.7]
[1672538798641,12.5526287,10.017,10.011,398.08756324]
[1672538799899,12.5526287,10.017,10.011,363.08756324]
[1672538800089,12.5526287,10.017,10.011,403.08756324]
[1672538801913,12.5526287,10.017,10.012,40.0]
[1672538802306,12.5526287,10.017,10.012,403.08756324]
[1672538802735,12.5526287,10.017,10.012,363.08756324]
[1672538804098,12.5526287,10.017,10.013,40.0]
[1672538804521,137.8455,10.018,10.013,40.0]
[1672538805256,137.8455,10.018,10.012,363.08756324]
[1672538805786,137.8455,10.018,10.013,40.0]
[1672538805787,12.5526287,10.017,10.013,40.0]
[1672538806116,12.5526287,10.017,10.012,363.08756324]
[1672538806313,12.5526287,10.017,10.013,40.0]
[1672538806742,137.8455,10.018,10.013,40.0]
[1672538807902,137.8455,10.018,10.012,363.08756324]
[1672538808615,12.5526287,10.017,10.012,363.08756324]
[1672538809366,12.5526287,10.017,10.013,40.0]
[1672538809701,137.8455,10.018,10.013,40.0]
[1672538813236,137.8455,10.018,10.015,40.0]
[1672538813463,114.9382,10.018,10.015,40.0]
[1672538832174,23.1828,10.029,10.017,298.7]
[1672538832383,23.1828,10.029,10.019,40.0]
[1672538832598,40.0,10.035,10.02,20.0]
[1672538832810,120.1913,10.034,10.022,40.0]
[1672538833436,120.1913,10.034,10.024,40.0]
[1672538833641,22.6513,10.033,10.024,40.0]
[1672538833881,74.87,10.032,10.024,40.0]
[1672538834069,97.5213,10.032,10.024,40.0]
[1672538837856,97.5213,10.032,10.023,298.7]
[1672538837857,40.0,10.031,10.023,298.7]
[1672538839149,234.853,10.032,10.023,298.7]
[1672538839464,159.983,10.032,10.024,55.80730786]
[1672538839675,159.983,10.032,10.026,40.0]
[1672538840817,159.983,10.032,10.025,407.19556324]
[1672538841032,159.983,10.032,10.025,338.7]
[1672538843899,159.983,10.032,10.025,298.7]
[1672538845354,40.0,10.031,10.025,298.7]
[1672538845767,159.983,10.032,10.025,298.7]
[1672538847652,159.983,10.032,10.026,673.62901182]
[1672538849326,159.983,10.032,10.026,673.12901182]
[1672538857850,40.0,10.031,10.022,298.7]
[1672538858059,63.3432,10.031,10.022,298.7]
[1672538858672,63.3432,10.031,10.018,24.9388]
[1672538858882,98.2232,10.03,10.021,20.0]
[1672538859092,40.0,10.029,10.02,298.7]
[1672538859302,63.3432,10.029,10.021,20.0]
[1672538861007,63.3432,10.029,10.021,60.0]
[1672538861193,63.3432,10.029,10.021,20.0]
[1672538861947,23.3432,10.029,10.021,60.0]
[1672538863523,23.3432,10.029,10.021,20.0]
[1672538863717,23.3432,10.029,10.021,60.0]
[1672538865290,23.3432,10.029,10.021,20.0]
[1672538865507,63.3432,10.029,10.021,20.0]
[1672538866149,63.3432,10.029,10.021,60.0]
[1672538867180,63.3432,10.029,10.021,20.0]
[1672538869623,23.3432,10.029,10.021,20.0]
[1672538874355,40.0,10.028,10.021,20.0]
[1672538874539,114.9,10.028,10.021,20.0]
[1672538876745,74.9,10.028,10.021,20.0]
[1672538880862,74.9,10.028,10.022,40.0]
[1672538881182,74.9,10.028,10.023,549.11963882]
[1672538885073,98.2332,10.029,10.023,549.11963882]
[1672538887479,23.3432,10.029,10.023,549.11963882]
[1672538887693,213.9091,10.03,10.024,40.0]
[1672538887894,139.0291,10.03,10.024,40.0]
[1672538888621,74.87,10.032,10.025,361.48325883]
[1672538889779,74.87,10.032,10.024,40.0]
[1672538890515,74.87,10.032,10.023,40.0]
[1672538894324,99.6201,10.032,10.022,140.2195]
[1672538894508,40.0,10.031,10.022,140.2195]
[1672538894722,74.88,10.03,10.022,140.2195]
[1672538896632,74.88,10.03,10.023,40.0]
[1672538896842,24.7501,10.031,10.023,40.0]
[1672538898538,24.7501,10.031,10.023,64.6409]
[1672538900953,24.7501,10.031,10.023,24.6409]
[1672538901164,74.88,10.03,10.023,24.6409]
[1672538902206,149.51479829,10.03,10.023,24.6409]
[1672538902617,40.0,10.029,10.023,24.6409]
[1672538902828,149.51479829,10.03,10.023,24.6409]
[1672538903038,149.26959658,10.039,10.024,408.73]
[1672538903275,40.0,10.039,10.024,608.73295598]
[1672538903469,40.0,10.039,10.026,40.0]
[1672538903681,114.81,10.039,10.027,142.5841]
[1672538903885,114.81,10.039,10.028,40.0]
[1672538904095,114.81,10.039,10.029,43.807]
[1672538905249,114.81,10.039,10.03,23.807]
[1672538905459,114.81,10.039,10.031,20.0]
[1672538905671,114.81,10.039,10.031,43.807]
[1672538907692,74.81,10.039,10.031,43.807]
[1672538911253,74.81,10.039,10.031,83.807]
[1672538911794,40.0,10.038,10.031,43.807]
[1672538912200,74.81,10.039,10.031,43.807]
[1672538914729,40.0,10.038,10.031,43.807]
[1672538920437,40.0,10.038,10.031,118.677]
[1672538921489,74.81,10.039,10.031,118.677]
[1672538924730,114.81,10.04,10.031,118.677]
[1672538941361,40.0,10.04,10.031,118.677]
[1672538945657,138.3455,10.041,10.031,118.677]
[1672538946296,63.5455,10.041,10.032,23.247]
[1672538946505,63.5455,10.041,10.033,73.74]
[1672538946719,63.5455,10.041,10.033,96.987]
[1672538947126,212.81509658,10.041,10.033,96.987]
[1672538968983,172.81509658,10.041,10.033,96.987]
[1672538969404,172.81509658,10.041,10.033,136.987]
[1672538969630,172.81509658,10.041,10.034,40.0]
[1672538970464,23.5455,10.041,10.034,40.0]
[1672538974043,23.5455,10.041,10.033,136.987]
[1672538974906,63.5455,10.041,10.033,136.987]
[1672538975217,23.5455,10.041,10.033,136.987]
[1672538975949,23.5455,10.041,10.034,40.0]
[1672538976264,23.5455,10.041,10.033,136.987]
[1672538977625,63.5455,10.041,10.033,96.987]
[1672538977822,63.5455,10.041,10.033,95.987]
[1672538978795,23.5455,10.041,10.033,95.987]
[1672538978974,23.5455,10.041,10.033,450.49430786]
[1672538979187,23.5455,10.041,10.034,40.0]
[1672538979503,23.5455,10.041,10.036,40.0]
[1672538979707,23.0455,10.041,10.036,40.0]
[1672538980257,23.0455,10.041,10.036,55.80730786]
[1672538980989,23.0455,10.041,10.036,40.0]
[1672538982341,23.0455,10.041,10.036,55.80730786]
[1672538982864,23.0455,10.041,10.036,40.0]
[1672538983498,74.75,10.047,10.036,40.0]
[1672538983708,74.72,10.051,10.038,40.0]
[1672538983934,74.71,10.053,10.039,20.0]
[1672538984158,149.26959658,10.055,10.041,40.0]
[1672538984159,74.7,10.054,10.041,40.0]
[1672538984473,114.7,10.054,10.043,40.0]
[1672538984662,16.39052222,10.047,10.043,40.0]
[1672538984870,16.39052222,10.047,10.043,157.5552]
[1672538987285,16.39052222,10.047,10.043,117.5552]
[1672538987505,16.39052222,10.047,10.044,40.0]
[1672538988680,21.85402962,10.051,10.044,40.0]
[1672538989416,21.85402962,10.051,10.043,157.5552]
[1672538989729,21.85402962,10.051,10.043,140.214]
[1672538990775,21.85402962,10.051,10.044,40.0]
[1672538991182,21.85402962,10.051,10.043,140.214]
[1672538996553,21.85402962,10.051,10.043,156.02130786]
[1672538996765,21.85402962,10.051,10.044,40.0]
[1672538997515,21.85402962,10.051,10.043,196.02130786]
[1672538997929,21.85402962,10.051,10.043,180.214]
[1672538998122,21.85402962,10.051,10.044,40.0]
[1672538998988,21.85402962,10.051,10.043,140.214]
[1672538999495,21.85402962,10.051,10.044,40.0]
[1672539003180,21.85402962,10.051,10.044,354.50730786]
[1672539003922,21.85402962,10.051,10.044,15.80730786]
[1672539004148,21.85402962,10.051,10.043,140.214]
[1672539004655,21.85402962,10.051,10.044,40.0]
[1672539005712,21.85402962,10.051,10.043,180.214]
[1672539006440,21.85402962,10.051,10.043,140.214]
[1672539006868,40.0,10.05,10.043,140.214]
[1672539008009,21.90299818,10.049,10.043,140.214]
[1672539009186,63.1202,10.051,10.043,140.214]
[1672539010030,23.1202,10.051,10.043,140.214]
[1672539012021,21.92747516,10.05,10.043,140.214]
[1672539015072,21.92747516,10.05,10.044,40.0]
[1672539015702,16.44560637,10.05,10.044,40.0]
[1672539017789,16.44560637,10.05,10.043,140.214]
[1672539019930,21.92747516,10.05,10.043,140.214]
[1672539021511,21.92747516,10.05,10.044,40.0]
[1672539021936,21.92747516,10.05,10.043,140.214]
[1672539027916,96.4235523,10.05,10.043,140.214]
[1672539028141,40.0,10.049,10.043,140.214]
[1672539028655,61.90299818,10.049,10.043,140.214]
[1672539030843,21.90299818,10.049,10.043,140.214]
[1672539037919,96.64299818,10.049,10.043,140.214]
[1672539038112,40.0,10.048,10.043,140.214]
[1672539038746,61.87851634,10.048,10.043,140.214]
[1672539040857,21.87851634,10.048,10.043,140.214]
[1672539041175,21.87851634,10.048,10.043,212.444]
[1672539041784,137.11637714,10.05,10.043,212.444]
[1672539042329,97.11637714,10.05,10.043,212.444]
[1672539042856,21.90299818,10.049,10.043,212.444]
[1672539044336,61.90299818,10.049,10.043,212.444]
[1672539044550,21.90299818,10.049,10.043,212.444]
[1672539049157,96.39907532,10.049,10.043,212.444]
[1672539050334,21.90299818,10.049,10.043,212.444]
[1672539051062,96.39907532,10.049,10.043,212.444]
[1672539052969,96.39907532,10.049,10.044,40.0]
[1672539053163,21.90299818,10.049,10.045,72.02]
[1672539053903,113.54362578,10.05,10.045,72.02]
[1672539059779,119.0438523,10.05,10.045,72.02]
[1672539060107,40.0,10.049,10.045,72.02]
[1672539060417,119.0438523,10.05,10.045,72.02]
[1672539060628,40.0,10.049,10.045,72.02]
[1672539062302,113.54362578,10.05,10.045,72.02]
[1672539062512,40.0,10.049,10.045,72.02]
[1672539063258,40.0,10.049,10.043,140.214]
[1672539065045,153.54362578,10.05,10.043,140.214]
[1672539065256,40.0,10.049,10.043,140.214]
[1672539066096,153.54362578,10.05,10.043,140.214]
[1672539066727,40.0,10.049,10.043,140.214]
[1672539066922,114.49607714,10.049,10.043,140.214]
[1672539067565,74.49607714,10.049,10.043,140.214]
[1672539071665,113.54362578,10.05,10.043,140.214]
[1672539076594,40.0,10.049,10.043,140.214]
[1672539076906,113.54362578,10.05,10.043,140.214]
[1672539081430,40.0,10.049,10.043,140.214]
[1672539082283,97.11637714,10.05,10.043,140.214]
[1672539084383,50.0,10.044,10.043,140.214]
[1672539084595,50.0,10.044,10.041,72.78]
[1672539084997,50.0,10.044,10.041,88.58730786]
[1672539085228,50.0,10.044,10.042,40.0]
[1672539093848,50.0,10.044,10.041,387.28730786]
[1672539094040,50.0,10.044,10.041,88.58730786]
[1672539094795,50.0,10.044,10.041,72.78]
[1672539105936,50.0,10.044,10.042,40.0]
[1672539106148,50.0,10.044,10.041,72.78]
[1672539108030,50.0,10.044,10.042,40.0]
[1672539108243,50.0,10.044,10.041,72.78]
[1672539108450,50.0,10.044,10.042,40.0]
[1672539113508,50.0,10.044,10.041,371.48]
[1672539113814,49.0,10.044,10.042,40.0]
[1672539115186,49.0,10.044,10.041,371.48]
[1672539115499,49.0,10.044,10.042,40.0]
[1672539117169,49.0,10.044,10.041,72.78]
[1672539117379,49.0,10.044,10.042,40.0]
[1672539117815,49.0,10.044,10.042,354.50730786]
[1672539125697,22.5273,10.048,10.042,354.50730786]
[1672539126853,13.11241777,10.047,10.042,354.50730786]
[1672539131589,13.11241777,10.047,10.043,15.80730786]
[1672539133271,13.11241777,10.047,10.042,400.53143683]
[1672539133464,13.11241777,10.047,10.042,298.7]
[1672539135673,13.11241777,10.047,10.043,40.0]
[1672539135886,13.11241777,10.047,10.042,298.7]
[1672539136206,13.11241777,10.047,10.044,15.80730786]
[1672539136420,12.61241777,10.047,10.043,40.0]
[1672539137781,22.5273,10.048,10.042,338.7]
[1672539137991,22.5273,10.048,10.042,298.7]
[1672539138405,22.5273,10.048,10.043,40.0]
[1672539138616,22.5273,10.048,10.042,298.7]
[1672539142513,22.5273,10.048,10.041,88.58730786]
[1672539142730,22.5273,10.048,10.039,43.0325]
[1672539142939,114.75,10.047,10.039,43.0325]
[1672539143254,40.0,10.046,10.039,43.0325]
[1672539144499,40.0,10.044,10.039,43.0325]
[1672539144712,114.76,10.046,10.039,43.0325]
[1672539147253,137.4462,10.047,10.039,43.0325]
[1672539149227,137.4462,10.047,10.039,83.0325]
[1672539149657,97.4462,10.047,10.039,381.7325]
[1672539149876,97.4462,10.047,10.04,40.0]
[1672539150073,22.6962,10.047,10.04,40.0]
[1672539150391,22.6962,10.047,10.041,318.7]
[1672539150627,22.6962,10.047,10.042,40.0]
[1672539150796,22.6962,10.047,10.044,40.0]
[1672539151015,24.4953,10.048,10.044,40.0]
[1672539151213,24.4953,10.048,10.045,298.7]
[1672539151427,23.9187,10.052,10.045,298.7]
[1672539151758,74.71,10.053,10.045,298.7]
[1672539152905,16.41981087,10.052,10.045,298.7]
[1672539153445,40.0,10.051,10.044,15.80730786]
[1672539155861,16.38310637,10.05,10.044,15.80730786]
[1672539156193,16.38310637,10.05,10.042,338.7]
[1672539156409,16.38310637,10.05,10.043,15.80730786]
[1672539156813,16.38310637,10.05,10.044,298.7]
[1672539158174,16.38310637,10.05,10.044,314.50730786]
[1672539158595,16.38310637,10.05,10.045,40.0]
[1672539159017,16.38310637,10.05,10.046,298.7]
[1672539159974,16.38310637,10.05,10.046,302.875]
[1672539162372,16.38310637,10.05,10.047,298.7]
[1672539162705,16.38310637,10.05,10.048,40.0]
[1672539163017,16.38310637,10.05,10.049,20.0]
[1672539163847,53.10648509,10.056,10.049,20.0]
[1672539165426,13.10648509,10.056,10.049,60.0]
[1672539165632,13.10648509,10.056,10.049,20.0]
[1672539176694,13.10648509,10.056,10.05,10.28]
[1672539176906,13.10648509,10.056,10.051,20.0]
[1672539181515,13.10648509,10.056,10.05,20.0]
[1672539187292,13.10648509,10.056,10.05,60.0]
[1672539187509,13.10648509,10.056,10.05,20.0]
[1672539197804,13.10648509,10.056,10.05,39.45]
[1672539198659,40.0,10.055,10.05,20.0]
[1672539199796,13.16520061,10.054,10.05,20.0]
[1672539210765,13.16520061,10.054,10.05,318.7]
[1672539211082,13.16520061,10.054,10.051,40.0]
[1672539211489,13.16520061,10.054,10.051,15.80730786]
[1672539211910,40.0,10.057,10.051,15.80730786]
[1672539212869,13.19454085,10.056,10.051,15.80730786]
[1672539213080,13.19454085,10.056,10.051,55.80730786]
[1672539213285,13.19454085,10.056,10.051,15.80730786]
[1672539213921,64.291,10.058,10.051,15.80730786]
[1672539214123,24.291,10.058,10.051,15.80730786]
[1672539214462,24.291,10.058,10.051,354.50730786]
[1672539215916,13.2092066,10.057,10.051,354.50730786]
[1672539217904,53.2092066,10.057,10.05,20.0]
[1672539221707,13.2092066,10.057,10.05,20.0]
[1672539223283,40.0,10.056,10.05,20.0]
[1672539223780,53.19454085,10.056,10.05,20.0]
[1672539225052,13.19454085,10.056,10.05,20.0]
[1672539225714,13.19454085,10.056,10.05,358.7]
[1672539226833,24.291,10.058,10.05,358.7]
[1672539227043,64.291,10.058,10.05,358.7]
[1672539227477,24.291,10.058,10.05,318.7]
[1672539227899,53.2092066,10.057,10.05,318.7]
[1672539228218,13.2092066,10.057,10.05,318.7]
[1672539229351,40.0,10.056,10.051,20.24]
[1672539230321,13.2092066,10.057,10.051,20.24]
[1672539230518,40.0,10.056,10.051,20.24]
[1672539230728,13.17987219,10.055,10.051,20.24]
[1672539231776,40.0,10.057,10.051,20.24]
[1672539233052,64.291,10.058,10.051,20.24]
[1672539233451,24.291,10.058,10.051,20.24]
[1672539233662,24.291,10.058,10.052,40.0]
[1672539233880,24.291,10.058,10.053,21.31]
[1672539235042,13.2092066,10.057,10.053,21.31]
[1672539235357,8.2312066,10.057,10.054,40.0]
[1672539235558,8.2312066,10.057,10.055,21.31]
[1672539235776,24.291,10.058,10.055,21.31]
[1672539235986,444.90596138,10.075,10.055,21.31]
[1672539235987,74.49607714,10.069,10.056,318.7]
[1672539236177,149.26959658,10.071,10.056,318.7]
[1672539236178,74.49607714,10.07,10.057,21.31]
[1672539236392,120.75357714,10.07,10.058,318.7]
[1672539236609,120.75357714,10.07,10.059,21.31]
[1672539236819,120.75357714,10.07,10.06,457.6993]
[1672539237054,120.75357714,10.07,10.061,61.31]
[1672539237235,46.2575,10.07,10.061,85.1416]
[1672539237760,46.2575,10.07,10.061,227.90943919]
[1672539237967,46.2575,10.07,10.061,187.90943919]
[1672539238182,46.2575,10.07,10.061,227.90943919]
[1672539238398,46.2575,10.07,10.062,40.0]
[1672539241549,74.49607714,10.08,10.063,394.08003116]
[1672539241863,74.49607714,10.078,10.063,298.7]
[1672539242186,120.1676,10.077,10.064,415.1091]
[1672539242398,20.0,10.076,10.066,298.7]
[1672539242592,94.54,10.076,10.066,298.7]
[1672539242799,94.54,10.076,10.067,40.0]
[1672539243026,20.0,10.076,10.067,40.0]
[1672539243333,20.0,10.076,10.065,298.7]
[1672539243553,141.5161,10.076,10.065,298.7]
[1672539243868,66.9761,10.076,10.067,298.7]
[1672539244061,46.9761,10.075,10.067,298.7]
[1672539244277,74.53,10.077,10.068,20.0]
[1672539244486,75.106796,10.085,10.069,40.0]
[1672539244487,74.52,10.079,10.069,40.0]
[1672539244705,74.5,10.081,10.07,68.5005]
[1672539244904,74.5,10.081,10.071,40.0]
[1672539245547,74.5,10.081,10.071,159.5572]
[1672539245754,96.27085269,10.081,10.071,159.5572]
[1672539245968,96.27085269,10.081,10.071,119.5572]
[1672539246295,40.0,10.08,10.071,119.5572]
[1672539246478,40.0,10.078,10.071,119.5572]
[1672539246689,74.52,10.079,10.071,119.5572]
[1672539247133,114.51,10.08,10.071,119.5572]
[1672539249552,74.51,10.08,10.071,119.5572]
[1672539249862,74.51,10.08,10.071,159.5572]
[1672539250054,121.8814,10.081,10.071,159.5572]
[1672539250267,40.0,10.08,10.071,119.5572]
[1672539250597,121.8814,10.081,10.072,40.0]
[1672539250808,143.65225269,10.081,10.072,40.0]
[1672539251022,69.15225269,10.081,10.072,40.0]
[1672539251428,69.15225269,10.081,10.072,115.84310773]
[1672539251631,69.15225269,10.081,10.074,40.0]
[1672539251842,21.77085269,10.081,10.074,40.0]
[1672539252382,21.77085269,10.081,10.075,75.84310773]
[1672539253211,21.77085269,10.081,10.074,40.0]
[1672539253641,21.77085269,10.081,10.073,40.0]
[1672539253843,21.77085269,10.081,10.074,22.24]
[1672539254885,87.76773952,10.083,10.074,22.24]
[1672539255114,65.26133952,10.083,10.074,22.24]
[1672539256359,40.0,10.082,10.074,22.24]
[1672539258053,114.49,10.082,10.074,22.24]
[1672539258883,21.77085269,10.081,10.074,0.0001]
[1672539259111,74.51,10.08,10.06,298.7]
[1672539259322,234.63092717,10.08,10.061,112.6578]
[1672539259526,132.94822717,10.079,10.061,411.3578]
[1672539259740,114.52,10.078,10.061,411.3578]
[1672539259950,20.0,10.077,10.062,182.9248]
[1672539260160,114.54,10.076,10.062,182.9248]
[1672539260357,114.54,10.076,10.063,159.6396]
[1672539260690,40.0,10.075,10.063,112.6578]
[1672539260916,40.0,10.073,10.063,112.6578]
[1672539261726,40.0,10.071,10.063,112.6578]
[1672539262146,40.0,10.071,10.064,12.86]
[1672539262676,40.0,10.071,10.063,12.86]
[1672539263096,74.58,10.07,10.061,129.1385]
[1672539263334,74.58,10.07,10.061,116.2785]
[1672539263522,40.0,10.069,10.061,116.2785]
[1672539263729,74.6,10.068,10.061,116.2785]
[1672539264151,40.0,10.067,10.061,116.2785]
[1672539267833,40.0,10.069,10.061,116.2785]